Cogmind - Beta 10.1 @@@ ROGUE MODE // 2020.09.21 @ 07:19:03 // AFD2020/Player2 Player: DragoX Result: Destroyed by D-53 Grenadier with Mini Grenade Launcher Performance ------------- Evolutions (0) 0 Regions Visited (2) 400 Robots Destroyed (16) 80 Value Destroyed (333) 333 Prototype IDs (0) 0 Alien Tech Used (0) 0 Bonus (-113) -113 TOTAL SCORE: 700 Bonus ------- Follower Combat Kills 46 Friendly Fire -159 Cogmind --------- Core Integrity 0/250 Matter 300/300 Energy 160/160 System Corruption 1% Temperature Cool (274) Movement Walking (120) Location -10/Mines Parts ------- > --- POWER (1) -------- Light Nuclear Core > --- PROPULSION (2) --- Aluminum Leg Aluminum Leg > --- UTILITY (2) ------ Hardened Light Armor Plating Hardened Light Armor Plating > --- WEAPON (2) ------- (None) > --- INVENTORY (4) ---- Advanced Terrain Scanner Transmission Jammer System Shield Improved Datajack Peak State ------------ > --- POWER ------------ Light Nuclear Core > --- PROPULSION ------- Aluminum Leg Aluminum Leg > --- UTILITY ---------- Advanced Terrain Scanner Hardened Light Armor Plating > --- WEAPON ----------- EM Pulse Gun Mining Laser > --- INVENTORY -------- Transmission Jammer Hardened Light Armor Plating System Shield Improved Datajack [Rating: 13] Favorites ----------- Power Light Nuclear Core Engine Ion Engine Power Core Light Nuclear Core Propulsion Aluminum Leg Leg Aluminum Leg Wheel Wheel Utility Hardened Light Armor Plating Device Advanced Terrain Scanner Storage Small Storage Unit Protection Hardened Light Armor Plating Weapon EM Pulse Gun Energy Gun EM Pulse Gun Special Weapon Mining Laser Build | -11 -10 -10 ------- Run | Scr Mat Min Slots Evolved . | . . . Power . | . . . Propulsion . | . . . Utility . | . . . Weapon . | . . . Parts Attached 21 | 7 7 7 Power 3 | 1 1 1 Engine 2 | 1 1 . Core 1 | . . 1 Reactor . | . . . Propulsion 6 | 4 2 . Treads . | . . . Leg 2 | . 2 . Wheel 4 | 4 . . Hover . | . . . Flight . | . . . Utility 8 | 1 2 5 Device 2 | . . 2 Storage 1 | 1 . . Processor . | . . . Hackware . | . . . Protection 5 | . 2 3 Artifact . | . . . Weapon 4 | 1 2 1 Energy Gun 1 | 1 . . Energy Cannon . | . . . Ballistic Gun . | . . . Ballistic Cannon . | . . . Launcher . | . . . Special Weapon 3 | . 2 1 Impact Weapon . | . . . Slashing Weapon . | . . . Piercing Weapon . | . . . Special Melee Weapon . | . . . Unidentified Prototypes . | . . . Parts Lost 3 | . 1 2 Power . | . . . Propulsion 1 | . 1 . Utility . | . . . Weapon 2 | . . 2 Highest Loss Streak 2 | . 1 2 Average Slot Usage (%) 98 | . 95 99 Engine 2 | . 13 . Core 10 | . . 13 Leg 27 | . 26 28 Device 10 | . . 12 Protection 17 | . 24 15 Energy Gun 14 | . 14 14 Special Weapon 13 | . 13 13 Naked Turns . | . . . Heaviest Build 18 | 11 18 18 Greatest Support 32 | 32 20 20 Greatest Overweight (x) 3 | 3 . . Average Overweight (x) . | . . . Largest Inventory Capacity 6 | 6 6 4 Average Capacity 4 | 5 4 4 Most Carried 6 | 6 5 4 Average Carried 3 | 5 2 3 Final Capacity 6 | 6 4 4 Final Carried 6 | 6 4 4 Class Distribution -------------------- 82% | Mutant 17% | Scavenger-Mutant Dominant Class ---------------- Scavenger-Mutant | -10/Materials Mutant | -10/Mines Resources | -11 -10 -10 ----------- Run | Scr Mat Min Matter Collected 405 | 270 55 80 Remotely . | . . . Salvage Created 530 | 241 176 113 Parts 34 | 19 9 6 Haulers Intercepted . | . . . Recyclers Shooed . | . . . Parts Field Recycled . | . . . Retrieved Matter . | . . . Parts Self-Destructed . | . . . Prevented . | . . . Kills | -11 -10 -10 ------- Run | Scr Mat Min Combat Hostiles Destroyed 8 | . 4 4 Guns 6 | . 2 4 AOE 1 | . 1 . Classes Destroyed 5 | 3 1 1 Worker 2 | 2 . . Tunneler 5 | 5 . . Recycler 1 | 1 . . Grunt 6 | . 4 2 Assembled 2 | . . 2 Best Kill Streak 8 | 8 2 2 Combat Bots Only 2 | . 2 2 Max Kills in Single Turn 1 | 1 1 1 Gunslinging . | . . . Exploded 1 | . 1 . Melee . | . . . Uniques/NPCs Destroyed . | . . . Combat | -11 -10 -10 -------- Run | Scr Mat Min Damage Taken 584 | 25 156 403 Core 147 | . 14 133 Absorbed by Shields . | . . . Core Remaining (%) 100 | 100 . . Volleys Fired 75 | 21 39 15 Largest 2 | 1 1 2 Hottest 140 | 40 100 140 Shots Fired 77 | 21 39 17 Gun 60 | 21 24 15 Cannon . | . . . Launcher . | . . . Special 17 | . 15 2 Kinetic . | . . . Thermal 17 | . 15 2 Explosive . | . . . Electromagnetic 60 | 21 24 15 Robot Hit Streak 10 | 10 4 5 Robot Miss Streak 4 | 1 4 2 Penetration Max . | . . . Secondary Targets . | . . . Shots Hit Robots 39 | 18 12 9 Core Hits 22 | 9 9 4 Critical Hits . | . . . Critical Kills . | . . . Critical Parts Destroyed . | . . . Melee Attacks . | . . . Impact . | . . . Slashing . | . . . Piercing . | . . . Sneak Attacks . | . . . Combat Hostiles . | . . . Follow-up Attacks . | . . . Damage Inflicted 734 | 280 325 129 Guns 569 | 244 199 126 Cannons . | . . . Explosions 162 | 36 126 . Melee . | . . . Ramming 3 | . . 3 Kinetic . | . . . Thermal 162 | 36 126 . Explosive . | . . . Electromagnetic 569 | 244 199 126 Impact . | . . . Slashing . | . . . Piercing . | . . . Highest Corruption 1 | . . 1 Average Corruption 1 | . . 1 Corruption Purged . | . . . Overload Shots . | . . . Overflow Damage 7 | . 7 . Projectiles . | . . . Explosions 7 | . 7 . Melee . | . . . Knockbacks . | . . . Impact . | . . . Kinetic . | . . . Secondary . | . . . Self-Inflicted Damage 25 | 25 . . Shots 1 | 1 . . Rammed . | . . . Targets Rammed 1 | . . 1 Kicked 1 | . . 1 Crushed . | . . . Highest Temperature 433 | 12 433 320 Average Temperature 132 | 12 133 151 Received Heat Transfer 123 | . 78 45 Effects 3 | . 3 . Shutdowns 1 | . 1 . Energy Bleed 1 | . 1 . Interference 1 | . 1 . Siege Activations . | . . . Robots Corrupted 1 | . 1 . Combat Hostiles 1 | . 1 . Parts Fried 2 | 2 . . Impact Corruptions . | . . . Robots Melted . | . . . Combat Hostiles . | . . . Parts Melted . | . . . Heat Transferred 212 | 50 162 . Parts Sabotaged . | . . . Parts Stolen . | . . . Parts Stripped . | . . . Power Chain Reactions 2 | 1 1 . Missiles Intercepted . | . . . Alert | -11 -10 -10 ------- Run | Scr Mat Min Peak Influence 136 | 40 136 77 Initial 52 | . . 52 Average 12 | 23 34 6 Maximum Alert Level . | . . . Low Security (%) 100 | 100 100 100 Level 1 . | . . . Level 2 . | . . . Level 3 . | . . . Level 4 . | . . . Level 5 . | . . . High Security . | . . . Max Security . | . . . Squads Dispatched 4 | . 3 1 Investigation 3 | . 2 1 Extermination . | . . . Reinforcement 1 | . 1 . Assault . | . . . Garrison . | . . . Intercept . | . . . Construction Impeded . | . . . Haulers Reinforced . | . . . Stealth | -11 -10 -10 --------- Run | Scr Mat Min Distress Signals . | . . . Communications Jammed . | . . . Distress Signals . | . . . Times Spotted 33 | . 10 23 Peak Tracking Total 18 | . 3 18 Tactical Retreats 1 | . 1 . Traps | -11 -10 -10 ------- Run | Scr Mat Min Traps Triggered 1 | . 1 . Indirectly . | . . . Trap Hack Attempts . | . . . Triggered . | . . . Disarmed . | . . . Reprogrammed . | . . . Reused . | . . . Traps Extracted . | . . . Installed . | . . . Triggered . | . . . Machines | -11 -10 -10 ---------- Run | Scr Mat Min Machines Disabled . | . . . Max in Single Turn . | . . . Machines Sabotaged 1 | . 1 . Garrisons Compromised . | . . . Overloaded Fab Kills . | . . . Fab Network Shutdowns . | . . . Hacking | -11 -10 -10 --------- Run | Scr Mat Min Machines Accessed 6 | . 5 1 Terminals 4 | . 4 . Fabricators . | . . . Repair Stations . | . . . Recycling Units 1 | . 1 . Scanalyzers . | . . . Garrison Access . | . . . Total Hacks 18 | . 17 1 Successful 8 | . 7 1 Failed 10 | . 10 . Catastrophic 2 | . 2 . Database Lockouts . | . . . Manual 19 | . 16 3 Terminals 14 | . 14 . Fabricators . | . . . Repair Stations . | . . . Recycling Units 3 | . 3 . Scanalyzers . | . . . Garrison Access . | . . . Terminal Hacks 1 | . . 1 Open Door 1 | . . 1 Fabricator Hacks . | . . . Repair Station Hacks . | . . . Recycling Unit Hacks . | . . . Scanalyzer . | . . . Garrison Access Hacks . | . . . Unauthorized Hacks 7 | . 7 . Terminals 6 | . 6 . Track 1 | . 1 . Assimilate 1 | . 1 . Botnet 1 | . 1 . Detonate 1 | . 1 . Operators 1 | . 1 . Sabotage 1 | . 1 . Fabricators . | . . . Repair Stations . | . . . Recycling Units 1 | . 1 . Recyclers 1 | . 1 . Scanalyzers . | . . . Garrison Access . | . . . Data Cores Recovered . | . . . Used . | . . . Hacking Detections 5 | . 5 . Full Trace Events 2 | . 2 . Feedback Events . | . . . Feedback Blocked . | . . . Robot Schematics Acquired . | . . . Robots Built . | . . . Matter . | . . . Time . | . . . Total Robot Build Rating . | . . . Part Schematics Acquired . | . . . Parts Built . | . . . Matter . | . . . Time . | . . . Total Part Build Rating . | . . . Parts Repaired . | . . . Time . | . . . Parts Recycled . | . . . Recycled Matter . | . . . Retrieved Matter . | . . . Retrieved Components . | . . . Parts Scanalyzed . | . . . Part Schematics Acquired . | . . . Parts Damaged . | . . . Bothacking | -11 -10 -10 ------------ Run | Scr Mat Min Used RIF Installer . | . . . Robots Hacked . | . . . Non-combat . | . . . Combat . | . . . Robot Hacks Applied . | . . . Relay Couplers Released . | . . . Robots Rewired . | . . . Allies Hacked . | . . . Hacks Repelled . | . . . Allies | -11 -10 -10 -------- Run | Scr Mat Min Total Allies 4 | . 1 3 Largest Group 4 | . 1 4 Highest-Rated Group 100 | . 57 100 Highest-Rated Ally 61 | . 57 61 Total Orders 3 | . . 3 GUARD 3 | . . 3 Ally Attacks 66 | . 28 38 Total Damage 1621 | . 217 1404 Kills 22 | . 4 18 Allies Corrupted . | . . . Allies Melted . | . . . Intel | -11 -10 -10 ------- Run | Scr Mat Min Robot Analysis Total . | . . . Derelict Logs Recovered 1 | . . 1 Drone Launches . | . . . Drone Recoveries . | . . . Exploration | -11 -10 -10 ------------- Run | Scr Mat Min Turns Passed 7413 | 528 1342 5543 Spaces Moved 800 | 95 413 292 Core 15 | 15 . . Treads . | . . . Legs 688 | . 396 292 Wheels 97 | 80 17 . Hover . | . . . Flight . | . . . Fastest Speed 50 | 50 80 120 Average Speed 116 | 95 118 120 Slowest Speed 200 | 200 120 120 Overloaded Moves . | . . . Propulsion Burnouts . | . . . Robots Hopped . | . . . Cave-ins Triggered . | . . . Exploration Rate (%) 39 | 5 55 58 Regions Visited 2 Branch Regions 1 Pre-discovered Areas . | . . . Known Exits Taken . | . . . Unknown Exits Taken 2 | 1 1 . Scrap Searched 1 | . . 1 Spaces Dug 15 | . 15 . Terrain Destroyed 20 | 2 18 . Melee . | . . . Projectile 15 | . 15 . AOE 5 | 2 3 . Terrain Rammed . | . . . Walls Destroyed . | . . . Machines Disabled . | . . . Actions | -11 -10 -10 --------- Run | Scr Mat Min Total 7174 | 510 1201 5463 Wait 6236 | 374 725 5137 Move 798 | 94 412 292 Hop . | . . . Pick Up 25 | 11 9 5 Fast Attach 5 | 3 1 1 Attach 11 | 4 6 1 Detach . | . . . Swap 5 | . . 5 Drop 18 | 3 9 6 Fire 75 | 21 39 15 Melee . | . . . Ram . | . . . Kick 1 | . . 1 Crush . | . . . Escape Stasis . | . . . Rewire . | . . . Trap . | . . . Miscellaneous . | . . . Route ------- -11/Scrapyard -10/Materials (discovered 3 exits: *Mat x2 / *Min) -10/Mines (discovered 2 exits: *Mat x2) History --------- Turn | Location | Event 15 | -11/Scrapyard | Discovered new exit (range 16) 529 | -11/Scrapyard | Entered Materials 563 | -10/Materials | Build established: Mutant 893 | -10/Materials | Build established: Scavenger-Mutant 1673 | -10/Materials | Discovered new exit (range 16) 1729 | -10/Materials | Discovered new exit (range 11) 1781 | -10/Materials | Discovered new exit (range 13) 1871 | -10/Materials | Entered Mines 1871 | -10/Mines | Accompanied by 1 ally 1877 | -10/Mines | Met a Derelict shopkeep closing up shop 2150 | -10/Mines | Build established: Mutant 6687 | -10/Mines | Discovered new exit (range 17) 7174 | -10/Mines | Identified exit to Materials 7205 | -10/Mines | Assisted by bots powering up and referring to "LRC-V3" 7370 | -10/Mines | Assembled infested the area 7375 | -10/Mines | Assisted by a Guerilla fighting off Assembled 7391 | -10/Mines | Core integrity fell below 50% 7411 | -10/Mines | Core integrity fell below 20% 7414 | -10/Mines | Destroyed by D-53 Grenadier with Mini Grenade Launcher Last Messages --------------- 07395_ as-11661 destroyed. 07396_ as-92936 destroyed. 07397_ K-01 Serf collects debris. Player 2: "Gonna need to replace that..." 07397_ Player 2 attaches Lgt. Treads. 07398_ as-85146 destroyed. 07399_ The unstable cave ceiling collapses. 07399_ Trooper 1a destroyed. 07400_ K-01 Serf collects debris. 07400_ as-64346 destroyed. 07403_ R-06 Scavenger destroyed. 07403_ K-01 Serf collects debris. 07406_ Trooper 1b destroyed. 07407_ K-01 Serf collects debris. 07408_ The unstable cave ceiling collapses. 07409_ U-05 Engineer destroyed. 07410_ K-01 Serf collects debris. 07410_ EM Pulse Gun destroyed. 07412_ The unstable cave ceiling collapses. 07414_ K-01 Serf collects debris. Map ----- +----------------------------------------------------+ | ##### =%* #?#???????#??#????? | | #### %##### """" ! ###???####?###????? | | ### ###?## """" ####???#?#???#?##????? | | ### ######## """" ###?#?#?#####?##??????? | | ######### ## ##?###?### #####?????? | | ##### ########## ## #######?# ##??#????? | | ###### ## ####### ## ######### ####????? | | ###### ####?### ### ########## #######? | | ###### #######?#######"%#######??## ## ## | | ####### ######?######### "###?####### # | | ################?######## ###### ## # | | ##############?########## t##### # | | #############?#??####?### """ # | | ########?#####?#?#?##### """ ## | | ###?##########??#####?## = ## """ ##? | | #########?######?###### ## ## """ ##?? | | ####?################## ! ######## #??? | | #########?#???##? ?### dd ####???# #?? | | #?#######?###?# ? ### #?##???# ## #?? | | ## ? ### ##?????## #######?? | | ? ?? ? #?# #??????####???????? | | ###??##### ? ### #??????????????????? | | ###?#" ### ? ???? ?# = @ ##?????????????????? | | #?###" ? #? ? ? ## ##????????????????? | | ????#" " ? ?# #????????????????? | | ?????? " " ? ? ?? ?## @ #????????????????? | | ?????????????????????## #????????????????? | | ????????????????????? % #????????????????? | | ??????????????????? k #????????????????? | | ????????????????? # #????????????????? | | ????????????????# #????????????????? | | ????????????????## #????????????????? | | ?????????????????# === #????????????????? | | ????????????????# *%[ #????????????????? | | ???????????????? #! #????????????????? | | ??????????????? ## # ##????????????????? | | ??????????????# #?####### ;#?????????????????? | | ????????????????## ????????? ##?????????????????? | | ???????????????????????????? ??????????????????? | | ???????????????????????????? ???????????????????? | | ?????????????????????????????????????????????????? | | ?????????????????????????????????????????????????? | | ?????????????????????????????????????????????????? | | ?????????????????????????????????????????????????? | | ?????????????????????????????????????????????????? | | ?????????????????????????????????????????????????? | | ?????????????????????????????????????????????????? | | ?????????????????????????????????????????????????? | | ?????????????????????????????????????????????????? | | ?????????????????????????????????????????????????? | +----------------------------------------------------+ Best States ------------- Heat Dissipation 25 Energy Generation 14 Energy Capacity 250 Matter Stores 300 Matter Capacity 300 Sight Range 16 Terrain Scan Range 20 Terrain Scan Density 10 Armor Coverage 300 Evasion (%) 44 Item Schematics ----------------- None Robot Schematics ------------------ None Fabricated ------------ Nothing Alien Tech Used ----------------- None Achievements -------------- Power Corrupts Challenges ------------ None Player 2 | -11 -10 -10 ---------- Run | Scr Mat Min Slots Evolved . | . . . Power . | . . . Propulsion . | . . . Utility . | . . . Weapon . | . . . Parts Attached 14 | . 10 4 Parts Lost 2 | . . 2 Damage Taken 672 | . 300 372 Core 103 | . 55 48 Player 2/Cogmind (%) 41 | . 79 26 Absorbed by Shields . | . . . Damage Inflicted 1369 | . 217 1152 Player 2/Cogmind (%) 65 | . 40 89 Combat Hostiles Destroyed 18 | . 4 14 Player 2/Cogmind (%) 69 | . 50 77 Game ------ Seed ShrapnelHugeCoupler Manual? 0 Play Time 00:27:06 Cumulative 11.4 hours Start 2020.09.21 @ 06:52:18 End 2020.09.21 @ 07:19:03 Sessions 1 Manual Loads 0 Difficulty Rogue Special Mode AFD2020/Player2 Game No. 19 Rogue 19 Adventurer 0 Explorer 0 Win Type - Total 0 Types 0/0/0/0/0/0/0/0/0 Lore% 10 Gallery% 14 Achievement% 17 Wizard Run 0 Options --------- ASCII 0 Keyboard 0 Movement Mouse Keybinds 0 Fullscreen 1 Font 18/X11 Map View 76x50 Tactical HUD 1 Map Filters NONE Filters NONE Steam 0 RUN: 84650d78-025d-4bee-9096-02e4a55a6e8a